bitfinex/quotes_SOLUSD_20260228
["timestamp","ask_amount","ask_price","bid_price","bid_amount"]
[1772293006109,4.30954951,81.009,80.972,4.22149931]
[1772293007620,4.30954951,81.007,80.973,12.34979561]
[1772293007817,16.31051667,80.99,80.964,12.35116842]
[1772293008019,16.31051667,80.98,80.951,12.3531519]
[1772293008732,4.30954951,80.969,80.937,4.22149931]
[1772293008933,4.30954951,80.969,80.929,30.89099371]
[1772293009114,4.30954951,80.969,80.927,4.22149931]
[1772293009419,4.30954951,80.969,80.931,4.22149931]
[1772293009627,4.30954951,80.969,80.93,16.31051667]
[1772293009628,12.35055824,80.968,80.933,4.22149931]
[1772293010206,12.35055824,80.968,80.941,4.22149931]
[1772293010428,16.31051667,80.96,80.932,12.35605199]
[1772293010727,16.31051667,80.96,80.923,12.35742619]
[1772293011416,43.22695385,80.968,80.902,4.22149931]
[1772293011417,16.31051667,80.94,80.902,4.22149931]
[1772293011623,16.31051667,80.94,80.904,4.22149931]
[1772293011932,12.35498338,80.939,80.904,4.22149931]
[1772293012617,16.66453289,80.939,80.904,4.22149931]
[1772293012819,20.62006618,80.92,80.9,24.98324267]
[1772293013128,16.31051667,80.91,80.9,24.98324267]
[1772293013324,43.24244183,80.939,80.902,4.22149931]
[1772293013325,16.31051667,80.93,80.902,4.22149931]
[1772293013534,16.31051667,80.93,80.903,12.36048106]
[1772293013535,12.35651002,80.929,80.903,12.36048106]
[1772293013829,4.26645401,80.947,80.911,4.22149931]
[1772293014028,4.26645401,80.969,80.931,4.22149931]
[1772293014626,4.26645401,80.959,80.9,24.93971186]
[1772293014937,16.31051667,80.92,80.9,4.22149932]
[1772293015114,16.31051667,80.91,80.9,4.22149932]
[1772293015319,20.80724552,80.91,80.9,1e-08]
[1772293015514,20.80724552,80.91,80.87,0.2]
[1772293015515,43.25901022,80.908,80.89,1e-08]
[1772293015735,12.35849547,80.916,80.89,1e-08]
[1772293015915,12.35803704,80.919,80.89,12.36241324]
[1772293016118,3.99397677,80.918,80.89,1e-08]
[1772293016620,16.31051667,80.9,80.89,1e-08]
[1772293017144,4.49672885,80.902,80.89,1e-08]
[1772293017356,4.49672885,80.918,80.89,1e-08]
[1772293017516,16.31051667,80.91,80.89,1e-08]
[1772293017716,12.35956444,80.909,80.89,1e-08]
[1772293018633,16.85629329,80.909,80.89,1e-08]
[1772293019441,16.31051667,80.92,80.89,1e-08]
[1772293019617,28.66851497,80.92,80.89,1e-08]
[1772293020823,49.3915999,80.986,80.89,1e-08]
[1772293020824,4.49672885,80.938,80.911,4.22149931]
[1772293021228,4.49672885,80.949,80.911,4.22149931]
[1772293021535,4.49672885,80.939,80.911,4.22149931]
[1772293021748,12.35513603,80.938,80.912,12.35910618]
[1772293021925,12.35513603,80.938,80.913,4.22149931]
[1772293022639,16.31051667,80.93,80.897,4.22149931]
[1772293022838,4.49672885,80.919,80.89,1e-08]
[1772293023151,4.49672885,80.899,80.87,0.2]
[1772293023442,4.49672885,80.889,80.856,16.58916438]
[1772293023747,12.36277321,80.888,80.856,16.58916438]
[1772293024046,12.36277321,80.888,80.827,3.69383402]
[1772293024047,16.31051667,80.88,80.848,25.47020189]
[1772293024346,43.26970625,80.888,80.851,4.22149931]
[1772293024523,43.26970625,80.888,80.861,4.22149931]
[1772293024725,12.36277321,80.888,80.861,4.22149931]
[1772293026040,4.49672885,80.887,80.848,13.10141461]
[1772293026237,16.31051667,80.86,80.832,4.22149931]
[1772293027023,12.36277321,80.888,80.841,4.22149931]
[1772293027337,16.31051667,80.87,80.841,4.22149931]
[1772293027541,20.76227823,80.85,80.83,0.2]
[1772293027842,4.45176156,80.893,80.831,4.22149931]
[1772293028043,16.31051667,80.88,80.841,4.22149931]
[1772293028941,16.81377063,80.893,80.86,16.31051667]
[1772293029244,16.31051667,80.87,80.832,4.22149931]
[1772293029447,16.31051667,80.89,80.851,4.22149931]
[1772293030143,16.31051667,80.87,80.833,4.22149931]
[1772293030923,4.37118336,80.859,80.83,0.2]
[1772293031140,203.98323627,80.889,80.83,0.2]
[1772293031141,16.31051667,80.85,80.83,0.2]
[1772293032354,12.36873678,80.849,80.812,4.12996066]
[1772293032651,12.36873678,80.849,80.82,20.44047733]
[1772293032850,16.31051667,80.86,80.831,4.12996066]
[1772293033252,4.37118336,80.866,80.831,4.12996066]
[1772293034551,12.36628949,80.865,80.832,16.50129874]
[1772293034738,12.36628949,80.865,80.833,4.12996066]
[1772293035950,12.36628949,80.865,80.81,0.2]
[1772293035951,16.31051667,80.84,80.81,0.2]
[1772293036129,4.37118336,80.839,80.81,0.2]
[1772293036338,16.31051667,80.83,80.81,0.2]
[1772293036643,16.31051667,80.82,80.81,0.07445451]
[1772293036834,4.32747152,80.828,80.81,0.07445451]
[1772293037030,12.37057288,80.837,80.811,16.50451362]
[1772293037235,4.32747152,80.848,80.812,4.12996066]
[1772293037450,16.31051667,80.84,80.812,4.12996066]
[1772293038553,12.37179725,80.829,80.812,4.12996066]
[1772293038742,12.37179725,80.829,80.81,0.07445451]
[1772293039549,12.37062418,80.837,80.81,0.07445451]
[1772293039851,16.31051667,80.84,80.812,4.12996066]
[1772293040756,12.37026682,80.839,80.813,12.37424671]
[1772293041057,16.31051667,80.83,80.81,0.07445451]
[1772293041244,12.36858379,80.85,80.812,4.12996066]
[1772293041554,12.36729061,80.859,80.821,4.12996066]
[1772293041854,16.31051667,80.85,80.821,4.12996066]
[1772293042255,16.31051667,80.88,80.811,43.31093538]
[1772293042256,12.36562277,80.87,80.831,4.12996066]
[1772293042441,16.31051667,80.88,80.841,4.12996066]
[1772293042640,16.31051667,80.88,80.851,4.12996066]
[1772293042947,16.31051667,80.88,80.853,4.12996066]
[1772293042948,28.67462036,80.88,80.853,4.12996066]
[1772293044153,49.43543396,80.914,80.871,4.12996066]
[1772293044154,16.31051667,80.91,80.871,4.12996066]
[1772293044636,4.32747152,80.914,80.881,4.12996066]
[1772293044836,43.25633704,80.913,80.881,4.12996066]
[1772293045046,4.32747152,80.909,80.871,4.12996066]
[1772293045255,16.31051667,80.91,80.871,4.12996066]
[1772293045555,12.35895344,80.913,80.88,20.44047733]
[1772293045934,16.31051667,80.91,80.88,4.12996066]
[1772293046130,16.31051667,80.9,80.87,4.12996066]
[1772293046660,16.31051667,80.9,80.855,30.91917299]
[1772293046661,16.31051667,80.89,80.854,4.12996066]
[1772293046956,4.32747152,80.899,80.861,4.12996066]
[1772293046957,12.36124502,80.898,80.861,4.12996066]
[1772293048060,12.36002142,80.907,80.874,4.12996066]
[1772293048948,4.32747152,80.909,80.874,4.12996066]
[1772293049137,4.32747152,80.909,80.857,3.69383402]
[1772293049138,16.31051667,80.92,80.881,4.12996066]
[1772293049756,43.24351038,80.937,80.891,4.12996066]
[1772293049757,16.31051667,80.93,80.891,4.12996066]
[1772293050059,16.31051667,80.93,80.901,4.12996066]
[1772293050767,12.35360972,80.948,80.911,4.12996066]
[1772293051060,16.68108124,80.948,80.913,4.12996066]
[1772293051843,12.35360972,80.948,80.913,4.12996066]
[1772293052257,12.35302086,80.952,80.913,4.12996066]
[1772293052456,12.35302086,80.952,80.921,4.12996066]
[1772293052738,20.63798819,80.94,80.91,4.12996066]
[1772293053155,12.35498338,80.939,80.91,4.12996066]
[1772293053346,16.31051667,80.95,80.911,4.12996066]
[1772293054135,30.88139252,80.955,80.921,4.12996066]
[1772293055752,16.34478787,80.95,80.921,4.12996066]
[1772293057561,12.35345711,80.949,80.921,4.12996066]
[1772293057863,12.35345711,80.949,80.923,4.12996066]
[1772293058254,43.23709989,80.949,80.911,4.12996066]
[1772293059459,43.23709989,80.949,80.914,12.35878799]
[1772293059648,43.23709989,80.949,80.917,4.12996066]
[1772293060049,16.34478787,80.94,80.908,12.35964934]
[1772293060366,16.34478787,80.93,80.903,4.12996066]
[1772293060559,4.32747152,80.939,80.905,4.40474151]
[1772293061365,4.32747152,80.939,80.904,12.36032829]
[1772293061366,47.37106114,80.949,80.911,4.40474151]
[1772293061660,16.34478787,80.94,80.911,4.40474151]
[1772293062757,4.13396125,80.939,80.903,16.76521996]
[1772293062971,4.13396125,80.939,80.904,4.40474151]
[1772293063765,12.35513603,80.938,80.904,4.40474151]
[1772293064162,12.35513603,80.938,80.906,4.31808654]
[1772293065772,4.32747152,80.937,80.906,4.31808654]
[1772293066160,4.32747152,80.929,80.897,4.31808654]
[1772293066364,4.32747152,80.929,80.89,16.34478787]
[1772293066365,16.34478787,80.93,80.898,12.36124502]
[1772293066551,16.34478787,80.93,80.899,4.31808654]
[1772293067274,4.32747152,80.931,80.901,4.31808654]
[1772293067663,16.34478787,80.93,80.901,4.31808654]
[1772293068176,12.35651002,80.929,80.901,4.31808654]
[1772293071378,12.35651002,80.929,80.903,4.31808654]
[1772293071876,12.35513603,80.938,80.903,4.31808654]
[1772293072474,4.32747152,80.929,80.895,4.31808654]
[1772293072676,4.32747152,80.929,80.897,4.31808654]
[1772293072888,4.32747152,80.937,80.897,4.31808654]
[1772293073382,4.32747152,80.935,80.899,4.31808654]
[1772293074176,16.34478787,80.93,80.899,4.31808654]
[1772293074369,4.32747152,80.929,80.899,4.31808654]
[1772293074977,4.32747152,80.929,80.901,4.31808654]
[1772293075763,12.35666271,80.928,80.902,12.36063385]
[1772293075963,12.35666271,80.928,80.903,4.31808654]
[1772293079684,12.35666271,80.928,80.904,12.36032829]
[1772293079981,12.35666271,80.928,80.904,16.67841483]
[1772293080666,12.35666271,80.928,80.889,30.90624748]
[1772293080667,4.41908838,80.919,80.883,3.69383402]
[1772293080865,4.41908838,80.919,80.89,16.34478787]
[1772293081389,32.0,80.929,80.9,16.34478787]
[1772293081687,32.0,80.929,80.901,61.5]
[1772293082578,27.5,80.929,80.92,16.34478787]
[1772293082782,22.6892699,80.929,80.92,16.34478787]
[1772293083363,22.6892699,80.929,80.891,43.2681015]
[1772293083364,4.5,80.927,80.879,12.36414891]
[1772293083576,4.5,80.919,80.882,30.90903912]
[1772293083780,4.5,80.919,80.89,16.34478787]
[1772293084480,4.45893906,80.919,80.882,30.90903912]
[1772293085082,4.45893906,80.919,80.879,12.36414891]
[1772293085665,12.35818977,80.918,80.873,30.91240968]
[1772293085867,12.35818977,80.918,80.88,16.34478787]
[1772293086785,16.34478787,80.96,80.911,4.31808654]
[1772293086992,30.88050317,80.958,80.911,4.31808654]
[1772293087167,16.34478787,80.95,80.903,4.31808654]
[1772293087366,30.88050317,80.958,80.9,16.34478787]
[1772293087367,16.34478787,80.94,80.9,16.34478787]
[1772293087587,30.88050317,80.958,80.89,16.34478787]
[1772293087588,16.34478787,80.93,80.89,16.34478787]
[1772293087780,16.34478787,80.93,80.891,12.36231471]
[1772293087781,43.24778508,80.929,80.891,12.36231471]
[1772293088180,43.24778508,80.929,80.881,4.31808654]
[1772293088181,16.34478787,80.92,80.881,4.31808654]
[1772293088769,4.41908838,80.919,80.881,4.31808654]
[1772293088972,4.41908838,80.919,80.89,16.34478787]
[1772293089272,4.41908838,80.919,80.881,4.31808654]
[1772293089469,4.41908838,80.919,80.88,16.34478787]
[1772293089881,4.41908838,80.917,80.881,12.36384317]
[1772293090676,4.41908838,80.917,80.881,43.27345111]
[1772293091084,4.41908838,80.917,80.883,4.30822597]
[1772293091285,4.41908838,80.917,80.89,16.34478787]
[1772293091667,4.41908838,80.917,80.882,61.5]
[1772293091877,4.41908838,80.917,80.883,4.30822597]
[1772293092093,4.30076244,80.915,80.884,12.3633846]
[1772293092996,4.30076244,80.915,80.884,47.58007207]
[1772293093174,4.30076244,80.915,80.885,4.30822597]
[1772293095001,4.30076244,80.928,80.891,4.30822597]
[1772293095200,3.69383402,80.968,80.886,43.27077615]
[1772293095201,4.30076244,80.936,80.91,16.34478787]
[1772293095412,4.30076244,80.934,80.91,16.34478787]
[1772293095697,4.30076244,80.934,80.901,4.30822597]
[1772293096794,4.30076244,80.934,80.91,16.34478787]
[1772293097485,4.30076244,80.934,80.911,12.35925893]
[1772293098186,4.30076244,80.932,80.902,12.36063385]
[1772293098880,4.30076244,80.929,80.902,12.36063385]
[1772293099593,4.30076244,80.927,80.895,30.90397131]
[1772293101381,4.30076244,80.925,80.895,30.90397131]
[1772293101795,4.30076244,80.925,80.9,16.34478787]
[1772293102599,4.30076244,80.925,80.897,4.30822597]
[1772293102893,4.30076244,80.925,80.9,16.34478787]
[1772293103302,4.30076244,80.925,80.901,61.5]
[1772293103504,4.30076244,80.923,80.902,12.36063385]
[1772293108718,4.30076244,80.941,80.904,4.30822597]
[1772293109395,4.30076244,80.938,80.905,12.36017551]
[1772293109584,4.30076244,80.938,80.906,4.30822597]
[1772293110410,4.30076244,80.936,80.907,12.35986997]
[1772293111802,4.30076244,80.936,80.908,61.5]
[1772293112603,4.30076244,80.934,80.909,12.35956444]
[1772293112797,12.35345711,80.949,80.91,6.10507468]
[1772293113003,4.30076244,80.946,80.92,6.10507468]
[1772293113191,4.30076244,80.946,80.92,10.41330065]
[1772293113594,4.30076244,80.946,80.92,4.30822597]
[1772293114521,16.65483001,80.945,80.921,12.35773161]
[1772293114697,4.30076244,80.944,80.921,12.35773161]
[1772293115614,4.30076244,80.944,80.915,12.35854691]
[1772293115811,4.30076244,80.939,80.911,73.85919095]
[1772293116014,4.30076244,80.939,80.911,12.35919095]
[1772293116796,4.30076244,80.937,80.905,16.66840148]
[1772293118320,4.30076244,80.937,80.905,12.36017551]
[1772293118519,4.30076244,80.937,80.901,73.86064704]
[1772293118720,6.10400313,80.92,80.883,12.36353745]
[1772293118905,4.30076244,80.917,80.883,12.36353745]
[1772293119100,4.30076244,80.917,80.874,4.30822597]
[1772293119305,4.30076244,80.909,80.874,4.30822597]
[1772293119910,4.30076244,80.909,80.869,12.36558483]
[1772293120302,4.30076244,80.899,80.869,12.36558483]
[1772293120800,4.21927411,80.897,80.862,4.25140962]
[1772293120999,4.21927411,80.897,80.861,43.28380947]
[1772293121000,4.21927411,80.897,80.87,6.10400313]
[1772293121220,4.21927411,80.897,80.863,4.25140962]
[1772293121798,4.21927411,80.889,80.83,13.7145651]
[1772293122023,4.21927411,80.879,80.841,4.25140962]
[1772293122919,4.21927411,80.869,80.841,4.25140962]
[1772293123804,4.21927411,80.869,80.842,12.36980777]
[1772293124009,4.21927411,80.869,80.843,4.49041574]
[1772293124425,4.21927411,80.869,80.838,12.37032518]
[1772293124805,4.21927411,80.869,80.837,3.69383402]
[1772293125103,4.3248881,80.859,80.825,12.37240952]
[1772293125419,4.3248881,80.859,80.826,4.49041574]
[1772293126420,4.3248881,80.872,80.841,4.49041574]
[1772293126919,12.36445466,80.877,80.851,4.49041574]
[1772293127801,16.68964853,80.875,80.842,4.49041574]
[1772293130230,16.68964853,80.875,80.844,4.49041574]
[1772293131025,4.3248881,80.874,80.844,4.49041574]
[1772293132729,4.3248881,80.874,80.846,12.36919575]
[1772293132909,4.3248881,80.874,80.847,4.49041574]
[1772293133425,16.68995431,80.873,80.847,4.49041574]
[1772293134029,4.3248881,80.872,80.846,12.36919575]
[1772293134819,4.3248881,80.872,80.849,4.49041574]
[1772293135012,12.36537201,80.871,80.849,4.49041574]
[1772293135603,111.24223168,80.905,80.845,4.49041574]
[1772293135604,4.3248881,80.87,80.845,4.49041574]
[1772293135809,4.3248881,80.876,80.845,4.49041574]
[1772293136110,12.36451823,80.877,80.836,3.69383402]
[1772293136111,4.3248881,80.869,80.836,3.69383402]
[1772293136812,4.3248881,80.867,80.837,12.37057288]
[1772293137827,4.3248881,80.874,80.841,4.49041574]
[1772293139233,4.3248881,80.874,80.843,4.49041574]
[1772293141319,4.3248881,80.874,80.844,12.36950175]
[1772293141518,4.3248881,80.874,80.845,4.49041574]
[1772293141714,12.36506621,80.873,80.846,61.5]
[1772293142027,4.3248881,80.872,80.846,61.5]
[1772293143329,4.3248881,80.872,80.847,12.36904275]
[1772293143626,4.3248881,80.87,80.847,12.36904275]
[1772293144732,4.3248881,80.87,80.848,61.5]
[1772293144929,4.3248881,80.87,80.849,61.5]
[1772293145238,4.3248881,80.87,80.847,12.36904275]
[1772293146834,4.3248881,80.87,80.847,4.49041574]
[1772293148318,4.3248881,80.868,80.842,4.49041574]
[1772293148544,4.3248881,80.868,80.83,7.36397332]
[1772293148545,4.3248881,80.849,80.816,4.49041574]
[1772293148842,4.3248881,80.849,80.821,4.49041574]
[1772293148843,4.25364756,80.849,80.821,4.49041574]
[1772293149226,12.36882657,80.849,80.821,4.49041574]
[1772293149624,12.36882657,80.849,80.823,12.37269923]
[1772293149817,12.36882657,80.849,80.821,4.49041574]
[1772293150023,12.36882657,80.849,80.822,12.37286877]
[1772293150741,4.39789675,80.848,80.822,12.37286877]
[1772293151538,4.39789675,80.846,80.82,0.2]
[1772293151839,4.39789675,80.846,80.821,12.37302186]
[1772293154022,12.36934875,80.845,80.821,12.37302186]
[1772293154337,4.39789675,80.844,80.821,12.37302186]
[1772293154536,6.11370733,80.86,80.822,4.29706857]
[1772293155446,6.11370733,80.86,80.824,4.29706857]
[1772293156032,12.36613657,80.866,80.824,4.29706857]
[1772293156445,4.39789675,80.865,80.824,4.29706857]
[1772293156822,4.39789675,80.865,80.831,4.29706857]
[1772293159248,4.39789675,80.864,80.833,4.29706857]
[1772293161463,4.39789675,80.839,80.814,33.7]
[1772293161748,4.39789675,80.839,80.794,102.3]
[1772293161749,4.39789675,80.829,80.804,4.29706857]
[1772293162127,4.39789675,80.829,80.799,3.69383402]
[1772293163438,12.37195031,80.828,80.799,16.07021083]
[1772293163646,4.39789675,80.827,80.799,12.37637681]
[1772293164049,12.37195031,80.828,80.791,4.29706857]
[1772293164050,4.39789675,80.819,80.791,4.29706857]
[1772293164353,4.39789675,80.826,80.791,4.29706857]
[1772293165828,10.51160408,80.84,80.801,4.29706857]
[1772293166166,4.39789675,80.838,80.801,4.29706857]
[1772293168338,4.39789675,80.836,80.803,4.29706857]
[1772293169741,4.39789675,80.836,80.811,4.29706857]
[1772293170338,4.39789675,80.836,80.813,4.29706857]
[1772293171650,4.39789675,80.842,80.813,4.29706857]
[1772293171851,4.39789675,80.839,80.813,4.29706857]
[1772293173346,12.37041985,80.838,80.814,12.37409359]
[1772293173546,4.39789675,80.837,80.814,12.37409359]
[1772293174569,4.39789675,80.837,80.813,4.29706857]
[1772293174864,4.39789675,80.837,80.814,33.7]
[1772293175439,4.39789675,80.835,80.791,4.29706857]
[1772293175654,4.39789675,80.835,80.801,4.29706857]
[1772293176464,4.39789675,80.823,80.794,4.29706857]
[1772293176646,4.39789675,80.819,80.794,4.29706857]
[1772293177050,4.39789675,80.819,80.79,12.57766779]
[1772293177051,4.39789675,80.809,80.79,0.2]
[1772293177664,4.39789675,80.807,80.79,0.2]
[1772293178162,4.39789675,80.807,80.78,0.2]
[1772293178163,4.39789675,80.789,80.78,0.2]
[1772293179368,4.39789675,80.796,80.78,0.2]
[1772293179966,6.12346061,80.79,80.78,0.2]
[1772293180153,6.12346061,80.8,80.781,4.29706857]
[1772293180365,6.12346061,80.82,80.782,4.29706857]
[1772293180548,4.39789675,80.819,80.782,4.29706857]
[1772293181360,4.44038101,80.829,80.791,4.20054255]
[1772293181746,10.56384162,80.82,80.791,4.20054255]
[1772293181952,16.81370906,80.819,80.792,12.37746311]
[1772293182152,4.44038101,80.818,80.793,4.20054255]
[1772293184271,4.44038101,80.818,80.794,12.37715671]
[1772293184471,12.37363426,80.817,80.794,12.37715671]
[1772293185073,12.37363426,80.817,80.794,16.77384288]
[1772293185269,12.37363426,80.817,80.795,4.39668617]
[1772293185453,6.12346061,80.83,80.795,4.39668617]
[1772293185653,12.37179725,80.829,80.795,4.39668617]
[1772293185954,4.16014879,80.829,80.795,4.39668617]
[1772293186565,4.16014879,80.836,80.801,4.39668617]
[1772293186948,12.37087895,80.835,80.801,4.39668617]
[1772293187572,16.53102774,80.835,80.801,4.39668617]
[1772293187768,12.37087895,80.835,80.801,4.39668617]
[1772293188567,4.16014879,80.836,80.803,4.39668617]
[1772293190456,6.12346061,80.84,80.805,4.39668617]
[1772293190457,4.16014879,80.834,80.805,4.39668617]
[1772293195869,16.53133382,80.833,80.807,4.39668617]
[1772293198676,16.53133382,80.833,80.811,4.39668617]
[1772293198874,6.46340074,80.854,80.82,6.12346061]
[1772293199076,4.16014879,80.852,80.821,4.39668617]
[1772293200372,4.16014879,80.869,80.841,4.39668617]
[1772293200678,4.16014879,80.869,80.842,12.36980777]
[1772293200884,53.13035859,80.912,80.829,4.39668617]
[1772293200885,4.16014879,80.859,80.829,4.39668617]
[1772293201589,4.16014879,80.859,80.831,4.39668617]
[1772293202464,4.16014879,80.859,80.828,4.39668617]
[1772293202890,4.16014879,80.857,80.831,4.39668617]
[1772293204873,4.16014879,80.861,80.833,4.39668617]
[1772293206989,4.16014879,80.861,80.835,4.39668617]
[1772293207289,4.16014879,80.87,80.835,4.39668617]
[1772293207504,4.16014879,80.874,80.841,4.39668617]
[1772293208293,12.36485066,80.875,80.826,4.39668617]
[1772293208294,4.16014879,80.859,80.826,4.39668617]
[1772293208474,4.16014879,80.859,80.83,10.52014678]
[1772293208791,4.16014879,80.859,80.831,4.39668617]
[1772293210687,4.08256414,80.858,80.833,4.2362995]
[1772293213302,4.08256414,80.858,80.835,4.2362995]
[1772293215794,4.08256414,80.858,80.836,12.37072591]
[1772293216299,4.08256414,80.856,80.836,12.37072591]
[1772293216678,4.08256414,80.856,80.837,4.2362995]
[1772293218305,4.08256414,80.856,80.838,12.37041985]
[1772293220185,4.08256414,80.856,80.84,22.72987391]
[1772293220391,4.08256414,80.87,80.841,4.2362995]
[1772293221591,4.08256414,80.87,80.842,12.36980777]
[1772293221997,4.08256414,80.87,80.842,16.60610727]
[1772293222290,12.36538996,80.871,80.842,16.60610727]
[1772293222291,4.08256414,80.883,80.861,4.2362995]
[1772293223799,4.08256414,80.889,80.863,4.2362995]
[1772293225389,4.08256414,80.879,80.853,4.2362995]
[1772293226504,4.08256414,80.885,80.861,4.2362995]
[1772293226707,4.08256414,80.899,80.861,4.2362995]
[1772293227491,12.36153547,80.897,80.861,4.2362995]
[1772293227692,4.08256414,80.896,80.861,4.2362995]
[1772293231713,4.08256414,80.889,80.862,12.36674828]
[1772293233628,4.08256414,80.887,80.862,12.36674828]
[1772293233792,4.08256414,80.887,80.841,3.69383402]
[1772293233793,4.08256414,80.869,80.843,12.36961096]
[1772293234709,4.08256414,80.869,80.839,12.370139]
[1772293234908,4.08256414,80.869,80.84,4.2362995]
[1772293235608,4.08256414,80.869,80.842,4.2362995]
[1772293237816,4.08256414,80.869,80.843,12.36965476]
[1772293238013,4.08256414,80.869,80.844,4.2362995]
[1772293240317,12.36492364,80.874,80.846,4.2362995]
[1772293240619,4.08256414,80.873,80.846,4.2362995]
[1772293243108,4.08256414,80.873,80.848,4.14836438]
[1772293243396,12.36436193,80.878,80.851,4.14836438]
[1772293243808,16.85806902,80.878,80.851,4.14836438]
[1772293244407,4.49370709,80.877,80.851,4.14836438]
[1772293246824,4.49370709,80.875,80.853,4.22126777]
[1772293249836,4.49370709,80.875,80.854,12.36797189]
[1772293251529,4.49370709,80.888,80.855,4.22126777]
[1772293251837,4.49370709,80.886,80.857,4.22126777]
[1772293252018,4.49370709,80.886,80.852,6.7]
[1772293252019,4.49370709,80.886,80.853,4.22126777]
[1772293253410,4.49370709,80.884,80.854,16.58923966]
[1772293253614,4.49370709,80.884,80.855,4.22126777]
[1772293254029,12.36323174,80.885,80.855,4.22126777]
[1772293254240,12.36323174,80.885,80.861,4.22126777]
[1772293254534,4.49370709,80.884,80.861,4.22126777]
[1772293256041,4.49370709,80.884,80.862,12.36674828]
[1772293256221,4.49370709,80.882,80.862,12.36674828]
[1772293257317,4.49370709,80.882,80.863,4.22126777]
[1772293258834,4.49370709,80.882,80.864,12.36644242]
[1772293259037,4.49370709,80.882,80.865,4.22126777]
[1772293261926,4.49370709,80.882,80.866,12.36613657]
[1772293262242,4.49370709,80.882,80.866,16.58740434]
[1772293264042,4.49370709,80.888,80.861,12.36690122]
[1772293264918,4.49370709,80.886,80.861,12.36690122]
[1772293266149,4.49370709,80.884,80.861,4.22126777]
[1772293266543,30.90386889,80.897,80.854,30.91980483]
[1772293266544,4.49370709,80.9,80.871,4.22126777]
[1772293267525,4.49370709,80.906,80.871,4.22126777]
[1772293267849,4.49370709,80.921,80.891,4.22126777]
[1772293268024,4.49370709,80.921,80.901,4.22126777]
[1772293268423,4.49370709,80.926,80.901,4.22126777]
[1772293269545,4.49370709,80.932,80.903,4.22126777]
[1772293269755,10.70750302,80.93,80.903,4.22126777]
[1772293270129,4.49370709,80.929,80.903,4.22126777]
[1772293270830,4.07712773,80.928,80.905,4.35738436]
[1772293273437,4.07712773,80.928,80.907,4.35738436]
[1772293274555,0.1,80.93,80.907,4.35738436]
[1772293274853,4.07712773,80.928,80.892,12.36216189]
[1772293275040,4.03635645,80.899,80.876,4.35738436]
[1772293275359,4.03635645,80.899,80.876,16.72193935]
[1772293275656,4.03635645,80.899,80.876,12.36455499]
[1772293276558,3.99599288,80.897,80.871,12.36537201]
[1772293276759,3.99599288,80.897,80.872,4.35738436]
[1772293277139,3.99599288,80.889,80.851,4.35738436]
[1772293277343,3.99599288,80.889,80.855,4.35738436]
[1772293278452,6.11379593,80.89,80.856,4.35738436]
[1772293278453,12.36277321,80.888,80.856,4.35738436]
[1772293278641,6.11379593,80.88,80.855,4.35738436]
[1772293278959,6.11379593,80.88,80.856,4.35738436]
[1772293279160,3.99599288,80.879,80.856,4.35738436]
[1772293281269,3.99599288,80.879,80.858,4.35738436]
[1772293282960,3.99599288,80.879,80.859,16.72459147]
[1772293284049,3.99599288,80.879,80.855,4.35738436]
[1772293284451,12.36430178,80.878,80.855,4.35738436]
[1772293285062,12.36430178,80.878,80.857,4.35738436]
[1772293286867,16.36029466,80.878,80.857,4.35738436]
[1772293287867,3.99599288,80.877,80.857,4.35738436]
[1772293288046,3.99599288,80.877,80.858,4.35738436]
[1772293291170,12.36460754,80.876,80.858,4.35738436]
[1772293295476,3.99599288,80.877,80.86,4.35738436]
[1772293295872,12.36460754,80.876,80.86,4.35738436]
[1772293297172,3.99599288,80.875,80.86,4.35738436]
[1772293297370,12.36491332,80.874,80.86,4.35738436]
[1772293297581,16.3609062,80.874,80.86,4.35738436]
[1772293297764,16.3609062,80.874,80.855,4.35738436]
[1772293299174,16.36014179,80.879,80.855,4.35738436]
[1772293299570,3.99599288,80.878,80.855,4.35738436]
[1772293300169,6.11309802,80.87,80.855,4.35738436]
[1772293300372,3.99599288,80.869,80.855,4.35738436]
[1772293300574,3.99599288,80.869,80.854,12.3988667]
[1772293301462,3.99599288,80.859,80.835,4.29766319]
[1772293301676,43.28040757,80.868,80.815,4.29766319]
[1772293301677,3.99599288,80.849,80.815,4.29766319]
[1772293301879,3.99599288,80.849,80.818,4.29766319]
[1772293302056,6.11309802,80.84,80.818,4.29766319]
[1772293302256,10.1090909,80.84,80.818,4.29766319]
[1772293302469,3.99599288,80.839,80.818,4.29766319]
[1772293302985,3.99599288,80.849,80.818,4.29766319]
[1772293303985,6.11309802,80.85,80.82,4.45096297]
[1772293304272,16.36143781,80.871,80.841,4.45096297]
[1772293304875,3.99599288,80.87,80.841,4.45096297]
[1772293305477,3.99599288,80.87,80.842,12.36980777]
[1772293305664,12.36544493,80.871,80.843,4.45096297]
[1772293306979,3.99599288,80.871,80.845,4.45096297]
[1772293309880,3.99599288,80.869,80.846,12.36919575]
[1772293310059,6.11309802,80.86,80.842,4.45096297]
[1772293310263,3.99599288,80.866,80.842,4.45096297]
[1772293312668,3.99599288,80.864,80.842,4.45096297]
[1772293312870,3.99599288,80.864,80.841,19.069902]
[1772293312871,3.99599288,80.864,80.844,4.45096297]